bitfinex-derivatives/quotes_ETHF0:USTF0_20250130
["timestamp","ask_amount","ask_price","bid_price","bid_amount"]
[1738250592057,3.16806253,3267.4,3267.3,3.61564222]
[1738250592761,3.16806253,3267.8,3267.3,3.2078]
[1738250592950,4.26506253,3267.8,3267.7,0.61207]
[1738250593256,4.26506253,3267.8,3267.4,1.9793]
[1738250593449,4.26506253,3267.8,3267.6,0.61208]
[1738250594161,4.26506253,3267.8,3267.7,0.61207]
[1738250594752,3.2078,3268.1,3267.7,0.61207]
[1738250594753,0.00294871,3268.5,3268.4,0.61194]
[1738250595151,0.00294871,3268.5,3268.2,3.2078]
[1738250595351,0.00294871,3268.5,3268.4,0.61194]
[1738250595552,0.00294871,3268.5,3268.3,0.61195]
[1738250595753,0.00294871,3268.5,3268.4,0.61194]
[1738250596156,0.00294871,3268.5,3268.2,3.2078]
[1738250596453,0.00294871,3268.5,3268.4,0.61194]
[1738250597259,0.00294871,3268.5,3268.3,1.59435]
[1738250597760,0.00294871,3268.5,3268.3,0.9824]
[1738250598056,0.00294871,3268.5,3267.3,3.2078]
[1738250598057,3.2078,3268.4,3267.3,3.2078]
[1738250598259,3.16806253,3267.9,3267.6,0.61207]
[1738250598457,3.16806253,3267.9,3267.3,4.1902]
[1738250598758,1.097,3268.1,3267.7,3.2078]
[1738250598960,1.097,3268.1,3268.0,0.61202]
[1738250599152,1.097,3268.1,3268.0,0.41110364]
[1738250599751,0.00294871,3268.5,3267.9,1.53008]
[1738250599956,0.00294871,3268.5,3268.4,0.61194]
[1738250600749,1.52907,3270.1,3268.4,0.61194]
[1738250600750,3.16806253,3270.0,3269.9,0.61166]
[1738250600958,0.61159,3270.3,3269.5,3.2078]
[1738250600959,3.16806253,3270.3,3269.5,3.2078]
[1738250601158,3.16806253,3270.3,3268.9,3.16806253]
[1738250601159,3.45275524,3270.5,3270.2,0.40271194]
[1738250601356,3.2078,3270.5,3270.0,3.2078]
[1738250601556,3.2078,3270.5,3270.4,0.61157]
[1738250602067,3.2078,3270.5,3270.3,0.61157]
[1738250602259,4.18876253,3271.0,3270.7,0.61151]
[1738250602260,3.16806253,3271.0,3270.7,0.61151]
[1738250603065,3.16806253,3271.0,3270.4,3.2078]
[1738250603268,3.16806253,3270.7,3270.5,0.9645]
[1738250603562,0.23985638,3271.3,3270.1,0.00459242]
[1738250603563,6.37586253,3270.6,3270.1,0.00459242]
[1738250603761,3.16806253,3270.3,3270.1,0.00459242]
[1738250603954,3.77965253,3270.3,3270.1,0.00459242]
[1738250604160,3.16806253,3270.3,3270.1,0.00459242]
[1738250604554,3.16806253,3270.6,3270.3,0.61157]
[1738250604759,3.16806253,3270.6,3270.1,0.96909242]
[1738250604956,3.16806253,3270.6,3270.4,0.61156]
[1738250605165,3.16806253,3270.6,3270.1,0.96909242]
[1738250605362,1.096,3270.8,3270.6,0.61152]
[1738250605568,1.096,3270.8,3270.2,0.6116]
[1738250605767,1.7075,3270.8,3270.3,0.61157]
[1738250605967,1.096,3270.8,3270.3,0.61157]
[1738250606262,1.096,3270.8,3270.1,0.96909242]
[1738250606263,3.16806253,3270.6,3270.1,0.96909242]
[1738250606463,3.77965253,3270.3,3270.1,0.96909242]
[1738250606665,3.16806253,3270.3,3270.1,0.96909242]
[1738250606869,3.16806253,3270.6,3270.2,0.61159]
[1738250607168,3.77960253,3270.6,3270.2,0.61159]
[1738250607461,0.6115,3270.8,3270.4,3.81935]
[1738250607762,3.16806253,3270.9,3270.5,0.61154]
[1738250608061,0.61155,3270.5,3270.2,0.9954]
[1738250608261,3.16806253,3270.6,3270.2,0.9954]
[1738250608768,0.61156,3270.5,3270.2,0.9954]
[1738250609261,3.16806253,3270.6,3270.3,3.2078]
[1738250609470,0.61155,3270.5,3270.3,3.2078]
[1738250609766,3.16806253,3270.6,3270.2,0.9954]
[1738250609969,3.16806253,3270.6,3270.4,0.61156]
[1738250610167,6.37586253,3271.0,3270.7,0.6115]
[1738250610562,6.37586253,3271.0,3270.3,3.2078]
[1738250610767,6.37586253,3271.4,3270.9,0.61147]
[1738250610965,0.6114,3271.3,3270.8,3.81928]
[1738250611268,6.37586253,3271.4,3270.8,3.2078]
[1738250611269,3.77951253,3271.1,3270.8,3.2078]
[1738250611462,3.77951253,3271.1,3270.8,3.81928]
[1738250611663,0.61146,3271.0,3270.8,0.61149]
[1738250611875,0.61146,3271.0,3270.4,3.2078]
[1738250612069,0.61146,3271.0,3270.7,0.61149]
[1738250612370,0.61146,3271.0,3270.8,0.61149]
[1738250612569,0.6115,3270.8,3270.6,0.61152]
[1738250612766,3.16806253,3270.8,3270.4,3.2078]
[1738250612970,3.2078,3271.0,3270.2,0.9954]
[1738250612971,3.16806253,3270.5,3270.2,0.9954]
[1738250613167,0.61158,3270.3,3270.2,0.9954]
[1738250613964,3.16806253,3270.5,3270.1,0.61620242]
[1738250614169,3.16806253,3270.8,3270.1,0.00459242]
[1738250614367,0.61152,3270.7,3270.5,0.61154]
[1738250614565,3.16806253,3271.1,3270.4,3.2078]
[1738250614767,3.77950253,3271.1,3270.9,0.61146]
[1738250615063,1.095,3271.4,3271.0,0.61144]
[1738250615064,4.26306253,3271.4,3271.0,0.61144]
[1738250615264,0.61144,3271.1,3270.9,0.61147]
[1738250615776,3.77950253,3271.1,3270.9,0.61146]
[1738250616170,3.16806253,3271.1,3270.8,3.2078]
[1738250616479,3.16806253,3271.1,3271.0,0.61145]
[1738250616774,3.16806253,3271.4,3270.8,3.2078]
[1738250616968,3.2078,3271.5,3270.8,3.2078]
[1738250617370,0.6113,3271.9,3271.7,0.61132]
[1738250617576,6.37586253,3272.0,3271.3,0.9946]
[1738250617879,6.37586253,3272.0,3271.3,1.9948]
[1738250618077,6.98713253,3272.0,3271.7,0.61132]
[1738250618276,0.6113,3271.9,3271.5,0.61135]
[1738250618474,0.6113,3271.9,3271.7,0.61132]
[1738250618682,6.98714253,3272.0,3271.8,0.6113]
[1738250618977,6.37586253,3272.0,3271.9,0.61129]
[1738250619377,3.16806253,3272.0,3271.9,0.61129]
[1738250619776,3.40886474,3272.3,3271.6,3.2078]
[1738250619976,3.40886474,3272.3,3271.3,1.9948]
[1738250619977,3.16806253,3271.7,3271.4,0.61138]
[1738250620177,3.77939253,3271.7,3271.4,0.61138]
[1738250620587,3.77939253,3271.7,3271.3,1.9948]
[1738250620885,0.61129,3271.9,3271.6,0.61134]
[1738250621184,0.61129,3271.9,3271.7,0.61132]
[1738250621376,0.6113,3271.8,3271.5,0.61135]
[1738250621682,6.37586253,3272.0,3271.3,1.9948]
[1738250621884,0.61131,3271.8,3271.4,0.61136]
[1738250622088,0.61135,3271.6,3271.3,2.60619]
[1738250622382,3.77939253,3271.7,3271.4,0.61137]
[1738250622581,3.16806253,3271.7,3271.3,1.9948]
[1738250622880,0.61135,3271.6,3271.3,2.60619]
[1738250623084,3.16806253,3271.7,3271.3,0.9946]
[1738250623276,0.61138,3271.5,3271.3,0.9946]
[1738250623679,3.16806253,3271.7,3271.3,0.9946]
[1738250623890,0.61137,3271.5,3271.3,0.9946]
[1738250624681,3.77940253,3271.7,3270.9,1.0141]
[1738250624884,0.61138,3271.5,3270.9,1.0141]
[1738250625085,3.16806253,3271.7,3270.9,1.0141]
[1738250625291,4.26306253,3271.7,3271.6,0.61134]
[1738250625486,3.16806253,3271.7,3271.6,0.61134]
[1738250625788,3.2078,3272.0,3271.9,0.61129]
[1738250626190,3.2078,3272.0,3271.8,0.6113]
[1738250626581,3.2078,3272.0,3271.9,0.61129]
[1738250626777,3.16806253,3272.1,3271.9,0.61129]
[1738250626993,3.77932253,3272.1,3271.7,0.61131]
[1738250627287,3.77932253,3272.1,3271.3,4.73629]
[1738250627288,3.2078,3272.0,3271.3,3.2078]
[1738250627484,3.16806253,3271.6,3270.9,4.2219]
[1738250627883,3.77940253,3271.6,3271.3,0.61138]
[1738250628082,3.16806253,3271.6,3271.4,0.61138]
[1738250628392,3.77941253,3271.6,3271.3,0.61139]
[1738250628593,3.16806253,3271.6,3270.9,4.2219]
[1738250628985,3.77941253,3271.6,3271.3,0.61139]
[1738250629184,3.16806253,3271.6,3271.5,0.61136]
[1738250629896,3.16806253,3271.6,3271.3,0.61139]
[1738250629897,3.77941253,3271.6,3271.3,0.61139]
[1738250630186,3.16806253,3271.6,3270.9,4.2219]
[1738250630387,0.61144,3271.1,3270.9,4.2219]
[1738250630578,3.77949253,3271.2,3270.9,3.81927]
[1738250630777,0.61145,3271.1,3270.9,3.2078]
[1738250630987,3.2078,3271.0,3270.5,3.2078]
[1738250631296,3.77955253,3270.8,3270.5,0.61154]
[1738250631491,3.16806253,3270.8,3270.1,3.21239242]
[1738250631990,0.61152,3270.7,3270.4,0.61156]
[1738250632186,3.16806253,3270.8,3270.1,3.21239242]
[1738250632689,0.61156,3270.5,3270.2,0.6116]
[1738250632890,0.61154,3270.6,3270.3,0.61157]
[1738250633285,3.40814775,3270.8,3270.1,0.00459242]
[1738250633484,0.61152,3270.7,3270.4,0.61156]
[1738250633786,3.16806253,3270.8,3270.1,0.00459242]
[1738250633982,3.16806253,3270.8,3270.5,0.61154]
[1738250634591,3.16806253,3270.8,3270.1,0.00459242]
[1738250634893,3.16806253,3270.8,3270.5,0.61154]
[1738250635091,3.77956253,3270.8,3270.4,0.61155]
[1738250635280,0.00339893,3270.7,3270.1,3.21239242]
[1738250635487,0.61491893,3270.7,3270.4,0.61155]
[1738250635687,0.61154,3270.6,3270.3,0.61158]
[1738250636187,0.61492893,3270.7,3270.3,0.61157]
[1738250636388,0.61154,3270.6,3270.3,0.61157]
[1738250636692,0.61490893,3270.7,3270.4,0.61156]
[1738250636893,0.61490893,3270.7,3270.1,3.21239242]
[1738250637087,0.61490893,3270.7,3270.3,0.61158]
[1738250637693,0.61490893,3270.7,3270.1,3.21239242]
[1738250637890,0.61490893,3270.7,3270.4,0.61156]
[1738250638096,0.61490893,3270.7,3270.4,0.61157]
[1738250638397,1.70890893,3270.7,3270.4,0.61157]
[1738250638600,1.70890893,3270.7,3270.3,0.61158]
[1738250638790,0.61154,3270.6,3270.3,0.61158]
[1738250639096,1.70891893,3270.7,3270.3,0.61158]
[1738250639293,1.09739893,3270.7,3270.1,3.21239242]
[1738250639595,0.61153,3270.6,3270.3,0.61157]
[1738250639790,1.70891893,3270.7,3270.1,3.21239242]
[1738250639992,0.61153,3270.6,3270.3,0.61157]
[1738250640194,1.09739893,3270.7,3270.1,3.21239242]
[1738250640588,0.61153,3270.6,3270.3,0.61157]
[1738250640887,0.6116,3270.2,3270.1,0.00459242]
[1738250641092,0.6116,3270.2,3269.7,3.81948]
[1738250641093,3.16806253,3270.4,3269.7,3.81949]
[1738250641397,0.61165,3270.0,3269.7,3.81949]
[1738250641596,3.16806253,3270.4,3269.7,3.2078]
[1738250641794,0.61161,3270.2,3269.9,0.61165]
[1738250642296,0.61161,3270.2,3269.7,3.2078]
[1738250642297,0.61159,3270.3,3270.1,0.61162]
[1738250642505,1.70559,3270.3,3269.7,3.21238533]
[1738250643001,1.094,3270.3,3269.7,3.21238533]
[1738250643503,0.61168,3269.8,3269.7,3.21238533]
[1738250643702,0.61168,3269.8,3269.7,0.00458533]
[1738250643892,3.2078,3269.8,3269.2,0.61178]
[1738250644091,0.61177,3269.4,3268.9,3.2078]
[1738250644305,0.61177,3269.4,3269.1,0.6118]
[1738250644494,0.61179,3269.3,3268.8,0.61187]
[1738250644694,0.61185,3268.9,3268.7,2.0078]
[1738250644909,3.16806253,3269.1,3268.7,2.0078]
[1738250645109,3.2078,3269.4,3269.3,0.61177]
[1738250645409,4.51112185,3269.9,3269.6,0.61171]
[1738250645602,4.87373253,3269.9,3269.5,0.61172]
[1738250645800,0.61169,3269.8,3269.4,1.0333]
[1738250645997,0.61171,3269.7,3269.4,1.0333]
[1738250646192,4.26206253,3269.9,3269.4,1.64504]
[1738250646398,4.26206253,3269.9,3268.9,1.0079]
[1738250646399,3.16806253,3269.5,3268.9,0.61184]
[1738250646600,0.6118,3269.2,3268.9,0.61185]
[1738250646806,0.61178,3269.3,3269.0,0.61182]
[1738250647007,0.61178,3269.3,3268.9,0.61183]
[1738250647203,6.37586253,3269.5,3268.7,1.0175]
[1738250647398,3.16806253,3269.1,3268.7,1.0175]
[1738250647605,3.16806253,3269.1,3269.0,0.61183]
[1738250647808,1.094,3269.3,3268.7,1.0175]
[1738250648002,1.094,3269.3,3269.2,0.61179]
[1738250648401,3.4170482,3269.9,3269.0,3.2078]
[1738250648605,3.16806253,3269.9,3269.7,0.61169]
[1738250648903,3.16806253,3270.2,3269.6,3.2078]
[1738250649211,0.61157,3270.4,3270.1,0.61161]
[1738250649713,3.16806253,3270.2,3270.1,0.61162]
[1738250650510,3.16806253,3270.2,3269.8,0.61168]
[1738250650814,0.25303894,3270.5,3270.3,0.61158]
[1738250650998,0.25303894,3270.5,3270.4,3.81937]
[1738250650999,0.00456877,3270.5,3270.4,3.81937]
[1738250651607,0.61158,3270.4,3270.0,3.81943]
[1738250651807,3.16806253,3270.2,3269.7,2.0112]
[1738250652301,3.16806253,3270.2,3270.1,0.61162]
[1738250652502,3.16806253,3270.2,3270.0,0.61163]
[1738250652710,3.16806253,3270.2,3270.1,0.61162]
[1738250653111,3.16806253,3270.2,3269.9,0.61164]
[1738250653312,3.16806253,3270.2,3270.0,0.61163]
[1738250653513,3.16806253,3270.2,3269.7,2.0112]
[1738250653714,3.21236877,3270.5,3269.7,5.219]
[1738250653910,1.094,3270.4,3269.8,0.94]
[1738250654210,1.094,3270.4,3270.1,0.61161]
[1738250654409,0.6116,3270.3,3269.9,0.61165]
[1738250654609,3.21236877,3270.5,3270.2,0.6116]
[1738250654806,0.00456877,3270.5,3270.1,3.2078]
[1738250655208,0.00456877,3270.5,3270.4,0.61157]
[1738250656421,0.00456877,3270.5,3270.2,0.61159]
[1738250656606,0.00456877,3270.5,3270.1,3.2078]
[1738250656809,0.61157,3270.4,3270.1,3.81941]
[1738250657012,0.00456877,3270.5,3270.0,0.61163]
[1738250657208,3.16806253,3270.2,3269.5,4.1507]
[1738250657407,3.16806253,3270.2,3269.9,0.61166]
[1738250657612,3.16806253,3270.2,3270.0,0.61164]
[1738250657821,3.16806253,3270.2,3269.5,4.1507]
[1738250658317,3.77968253,3270.2,3269.9,0.61165]
[1738250658513,3.16806253,3270.2,3269.5,3.2078]
[1738250658912,3.16806253,3269.8,3269.5,3.2078]
[1738250659121,0.61172,3269.6,3269.3,0.61176]
[1738250659417,0.61172,3269.6,3269.2,0.61178]
[1738250659617,0.61171,3269.7,3269.4,0.61175]
[1738250660020,0.61171,3269.7,3269.3,3.81956]
[1738250660312,0.61172,3269.6,3269.3,3.2078]
[1738250660517,3.16806253,3269.8,3269.3,3.2078]
[1738250660817,3.16806253,3269.8,3268.9,1.9725]
[1738250660818,3.16806253,3269.4,3268.9,1.9725]
[1738250661006,3.16806253,3269.0,3268.3,3.2078]
[1738250661209,3.77990253,3269.0,3268.6,0.61189]
[1738250661406,3.16806253,3269.0,3268.8,0.61187]
[1738250661610,3.16806253,3269.0,3268.4,1.9583]
[1738250661810,3.16806253,3268.7,3268.3,3.2078]
[1738250662613,0.6119,3268.6,3268.3,3.81975]
[1738250662816,3.77995253,3268.7,3268.5,0.61650533]
[1738250663118,3.77996253,3268.7,3268.5,0.00458533]
[1738250663524,0.6119,3268.6,3268.5,0.00458533]
[1738250664019,3.16806253,3268.7,3268.6,0.6119]
[1738250664523,3.16806253,3268.7,3268.5,0.00458533]
[1738250664821,3.16806253,3268.7,3268.5,0.61649533]
[1738250665322,3.16806253,3268.7,3268.5,0.61650533]
[1738250665718,3.16806253,3268.7,3268.6,0.6119]
[1738250666020,3.16806253,3268.7,3268.0,0.61201]
[1738250666021,0.61196,3268.4,3268.0,0.61201]
[1738250666216,3.16806253,3268.1,3267.9,5.77813]
[1738250666530,3.16806253,3268.1,3268.0,0.61202]
[1738250666823,3.16806253,3268.1,3267.3,3.2078]
[1738250667121,3.16806253,3267.7,3267.6,0.61209]
[1738250667325,3.16806253,3267.7,3267.4,1.63000533]
[1738250667711,3.16806253,3267.7,3267.5,0.61211]
[1738250667913,3.16806253,3267.7,3267.4,0.00458533]
[1738250668116,3.16806253,3267.7,3267.1,0.61218]
[1738250668117,3.81992,3267.5,3267.1,0.61218]
[1738250668719,3.2078,3267.5,3266.9,1.0133]
[1738250669120,3.16806253,3267.7,3267.6,0.61209]
[1738250669315,0.00458533,3268.0,3267.6,0.61209]
[1738250669316,1.09858533,3268.0,3267.6,0.61209]
[1738250669624,1.09858533,3268.0,3267.2,4.73821]
[1738250669625,0.00458533,3268.0,3267.9,0.61203]
[1738250669820,0.00458533,3268.0,3267.2,3.2078]
[1738250670021,3.16806253,3267.3,3267.2,3.2078]
[1738250670224,3.16806253,3267.3,3265.8,0.61241]
[1738250670225,0.61231,3266.5,3265.8,0.61241]
[1738250670531,6.37586253,3265.9,3265.6,0.992]
[1738250670918,3.16806253,3265.9,3265.6,0.992]
[1738250671313,3.16806253,3265.9,3265.8,0.61243]
[1738250671520,3.16806253,3265.9,3265.6,0.992]
[1738250671822,6.37586253,3265.9,3265.6,0.992]
[1738250674015,6.98828253,3265.9,3265.6,0.992]
[1738250674217,6.37586253,3265.9,3265.6,0.992]
[1738250674417,6.37586253,3265.9,3265.6,1.60446]
[1738250674615,6.37586253,3265.9,3265.4,0.00459298]
[1738250674820,3.16806253,3265.5,3265.4,0.00459298]
[1738250675218,3.16806253,3265.5,3265.4,0.61709298]
[1738250675421,3.16806253,3265.5,3265.4,0.00459298]
[1738250676328,6.98834253,3265.5,3265.4,0.00459298]
[1738250676628,6.98834253,3265.5,3264.8,1.041]
[1738250676629,6.37586253,3265.5,3264.8,1.041]
[1738250676919,3.16806253,3264.9,3264.0,3.2078]
[1738250677125,3.16806253,3264.4,3264.3,0.61271]
[1738250677525,3.16806253,3264.4,3264.2,1.041]
[1738250677731,3.16806253,3264.4,3264.3,0.61271]
[1738250678222,3.16806253,3264.4,3264.2,1.65372]
[1738250678425,3.16806253,3264.4,3264.2,1.65371]
[1738250678629,3.16806253,3264.4,3264.3,0.61271]
[1738250679219,3.16806253,3264.4,3264.2,1.65371]
[1738250679428,3.16806253,3264.4,3264.3,0.61271]
[1738250679923,3.16806253,3264.4,3264.2,1.041]
[1738250680120,3.16806253,3264.4,3264.3,0.61271]
[1738250680525,3.16806253,3264.4,3264.2,1.041]
[1738250680719,3.16806253,3264.4,3264.3,0.61271]
[1738250681727,3.16806253,3264.4,3264.0,3.21089131]
[1738250681728,3.16806253,3264.4,3264.0,0.00309131]
[1738250681929,0.61275,3264.1,3264.0,0.00309131]
[1738250682129,3.82054,3264.2,3264.0,0.00309131]
[1738250682330,4.3028,3264.2,3264.0,0.00309131]
[1738250682631,3.17265551,3264.4,3264.3,0.61271]
[1738250683430,0.00459298,3264.4,3264.3,0.61271]
[1738250683936,3.16806253,3264.8,3264.3,0.61271]
[1738250684235,3.16806253,3264.8,3264.7,0.61263]
[1738250684924,3.16806253,3265.3,3265.2,0.61254]
[1738250685125,3.16806253,3265.3,3265.1,0.61255]
[1738250685328,0.61255,3265.2,3265.0,0.61257]
[1738250685527,3.16806253,3265.1,3265.0,0.61257]
[1738250686123,3.16806253,3265.4,3264.9,3.2078]
[1738250686328,3.16806253,3265.4,3265.3,0.61252]
[1738250686534,3.16806253,3265.4,3265.0,0.9713]
[1738250686737,3.16806253,3265.4,3265.3,0.61252]
[1738250687634,3.16806253,3265.4,3265.2,0.61253]
[1738250687834,3.16806253,3265.4,3265.3,0.61252]
[1738250688537,0.00459298,3265.5,3265.3,3.2078]
[1738250688726,3.2078,3266.0,3265.9,0.61241]
[1738250689637,3.16806253,3266.2,3266.1,0.61237]
[1738250689842,3.16806253,3266.2,3265.7,3.2078]
[1738250690040,3.16806253,3265.8,3265.7,3.82025]
[1738250691136,3.16806253,3266.2,3266.1,0.61237]
[1738250691643,3.16806253,3266.2,3266.1,3.82017]
[1738250696844,0.00459298,3266.3,3266.2,0.61235]
[1738250698339,3.17265551,3266.3,3266.1,0.61236]
[1738250698534,3.17265551,3266.3,3265.9,0.973]
[1738250698750,3.78499551,3266.3,3266.1,0.61236]
[1738250699140,0.61238,3266.1,3265.9,1.5854]
[1738250699441,0.61238,3266.1,3265.7,3.2078]
[1738250699442,0.61238,3266.1,3266.0,0.61239]
[1738250699642,3.17265551,3266.3,3265.7,3.2078]
[1738250699843,0.61236,3266.2,3265.7,3.2078]
[1738250700043,4.81370551,3266.3,3266.1,0.61237]
[1738250700236,4.81369551,3266.3,3266.1,0.61237]
[1738250701247,0.61237,3266.2,3265.7,3.2078]
[1738250701544,3.16806253,3265.9,3265.8,0.61243]
[1738250702048,3.16806253,3265.9,3265.6,0.00459298]
[1738250702343,3.16806253,3265.9,3264.6,3.2078]
[1738250702543,3.16806253,3264.9,3264.4,1.9518]
[1738250702742,3.16806253,3264.9,3264.1,3.2078]
[1738250702743,3.16806253,3264.6,3264.1,3.2078]
[1738250703138,3.16806253,3264.2,3263.7,3.2078]
[1738250703343,1.53155,3264.8,3263.3,3.2078]
[1738250703344,3.16806253,3263.9,3263.3,3.2078]
[1738250703545,3.16806253,3263.6,3263.5,0.61286]
[1738250704946,3.16806253,3263.6,3263.3,0.00459298]
[1738250705545,3.16806253,3263.6,3263.3,0.61747298]
[1738250705844,3.16806253,3263.6,3263.3,0.00459298]
[1738250706049,0.984,3264.1,3263.8,0.6128]
[1738250706050,3.16806253,3263.9,3263.8,0.6128]
[1738250706547,3.16806253,3263.9,3263.3,3.21239298]
[1738250706745,0.61287,3263.5,3263.3,0.00459298]
[1738250706941,3.78090253,3263.6,3263.3,0.00459298]
[1738250707140,3.16806253,3263.6,3263.4,0.61288]
[1738250707344,3.16806253,3263.6,3263.3,0.00459298]
[1738250707544,3.16806253,3263.6,3263.5,0.61286]
[1738250708049,3.16806253,3263.6,3263.4,0.61287]
[1738250708238,3.16806253,3263.6,3263.3,0.00459298]
[1738250708440,3.16806253,3263.6,3263.5,0.61286]
[1738250709752,3.16806253,3263.6,3263.4,0.61287]
[1738250709953,3.16806253,3263.6,3263.3,0.00459298]
[1738250710252,3.16806253,3263.6,3263.5,0.61286]
[1738250711153,5.2858,3264.1,3264.0,0.61277]
[1738250711357,5.2858,3264.1,3263.3,3.21239298]
[1738250711547,5.2858,3264.1,3263.4,0.61288]
[1738250711856,5.2858,3264.1,3264.0,0.61277]
[1738250712049,4.1918,3264.1,3264.0,0.61277]
[1738250712247,3.2078,3264.1,3264.0,0.61277]
[1738250712655,3.16806253,3264.2,3263.7,3.2078]
[1738250712849,3.16806253,3264.2,3264.1,0.61275]
[1738250713048,0.00459298,3264.3,3263.7,4.181]
[1738250713346,0.00459298,3264.3,3264.2,3.82053]
[1738250713749,0.00459298,3264.3,3263.7,4.181]
[1738250713952,3.78085253,3263.9,3263.7,3.2078]
[1738250714153,3.78085253,3263.9,3263.3,1.01569298]
[1738250714355,3.16806253,3263.9,3263.7,0.61282]
[1738250714655,3.16806253,3263.9,3263.3,1.01569298]
[1738250714951,3.16806253,3263.6,3263.5,0.61286]
[1738250715351,3.16806253,3263.6,3263.3,0.61748298]
[1738250715846,3.16806253,3263.6,3263.4,0.61288]
[1738250716153,3.16806253,3263.6,3263.3,0.00459298]
[1738250716357,3.16806253,3263.6,3263.3,0.61748298]
[1738250716660,3.16806253,3263.6,3263.4,0.61287]
[1738250717253,3.16806253,3263.6,3263.3,0.00459298]
[1738250717455,3.16806253,3263.6,3263.4,0.61287]
[1738250718151,3.16806253,3263.6,3263.5,0.61286]
[1738250718755,1.094,3263.8,3263.7,0.61282]
[1738250718954,1.094,3263.8,3263.5,0.61285]
[1738250719159,3.16806253,3263.6,3263.5,0.61285]
[1738250719454,3.16806253,3263.6,3263.3,0.00459298]
[1738250719656,3.16806253,3263.6,3263.5,0.61286]
[1738250720858,3.16806253,3263.6,3263.3,0.00459298]
[1738250721160,3.16806253,3263.6,3263.4,0.61287]
[1738250721757,1.094,3263.8,3263.3,0.00459298]
[1738250721956,1.094,3263.8,3263.7,0.61282]
[1738250725059,1.094,3263.8,3263.3,0.00459298]
[1738250725251,3.78094253,3263.4,3263.3,0.00459298]
[1738250726475,3.16806253,3263.4,3263.3,0.00459298]
[1738250726760,0.613,3262.8,3262.3,3.2078]
[1738250727062,6.33612506,3262.4,3261.8,3.2078]
[1738250727362,6.33612506,3262.4,3261.1,0.6133]
[1738250727363,0.61323,3261.6,3261.1,0.6133]
[1738250727553,3.16806253,3261.2,3260.8,1.0118]
[1738250727750,3.16806253,3261.2,3261.1,0.61331]
[1738250728152,3.16806253,3261.2,3260.8,1.0118]
[1738250728370,3.16806253,3261.2,3261.1,0.61331]
[1738250729367,0.00459298,3261.3,3261.2,0.61329]
[1738250733167,3.17265551,3261.3,3261.2,0.61329]
[1738250733462,3.17265551,3261.3,3260.9,0.61335]
[1738250733964,3.17265551,3261.3,3261.1,0.6133]
[1738250734158,3.17265551,3261.3,3260.8,1.0118]
[1738250734362,3.17265551,3261.3,3261.2,0.61329]
[1738250734662,0.00459298,3261.3,3261.2,0.61329]
[1738250735056,7.46986253,3262.2,3261.3,1.53319]
[1738250735259,3.2078,3262.2,3262.1,0.61312]
[1738250735456,3.16806253,3262.5,3262.4,0.61307]
[1738250736059,3.2078,3263.0,3262.1,3.2078]
[1738250736260,3.16806253,3263.4,3263.3,0.6129]
[1738250736463,3.2078,3263.5,3263.4,0.61288]
[1738250738158,2.98e-06,3263.8,3263.4,3.2078]
[1738250738361,2.98e-06,3263.8,3263.7,0.61282]
[1738250739664,3.16806551,3263.8,3263.4,3.2078]
[1738250739868,3.16806551,3263.8,3263.7,0.61282]
[1738250740064,2.98e-06,3263.8,3263.7,0.61282]
[1738250741174,3.16806551,3263.8,3263.7,0.61282]
[1738250741776,3.16806551,3263.8,3263.6,0.61283]
[1738250741977,2.98e-06,3263.8,3263.7,0.61282]
[1738250743977,0.61286,3263.6,3263.1,0.61292]
[1738250744278,6.37586253,3263.4,3263.0,3.2078]
[1738250744475,6.98875253,3263.4,3263.0,3.2078]
[1738250744670,6.98875253,3263.4,3262.5,0.9438]
[1738250744671,0.61294,3263.1,3262.7,0.613]
[1738250744871,6.37586253,3263.0,3262.6,3.2078]
[1738250745180,6.37586253,3263.0,3262.2,0.00459298]
[1738250745181,3.16806253,3262.7,3262.2,0.00459298]
[1738250745376,4.26206253,3262.7,3262.5,0.61305]
[1738250745871,4.26206253,3262.7,3262.4,0.61306]
[1738250746178,4.26206253,3262.7,3262.5,0.61305]
[1738250746771,4.26206253,3262.7,3262.2,0.00459298]
[1738250747486,3.2078,3262.5,3262.2,0.00459298]
[1738250748075,3.2078,3262.5,3262.4,0.61307]
[1738250748286,3.16806253,3262.7,3262.2,0.00459298]
[1738250748472,3.16806253,3262.7,3262.6,0.61303]
[1738250748778,3.16806253,3262.7,3262.5,0.61303]
[1738250749077,3.16806253,3262.7,3262.6,0.61303]
[1738250749581,3.16806253,3262.7,3262.5,0.61304]
[1738250749783,3.16806253,3262.7,3262.4,0.61305]
[1738250750076,3.16806253,3262.7,3262.2,0.00459298]
[1738250751078,3.2078,3262.5,3262.2,0.00459298]
[1738250751274,3.2078,3262.5,3262.4,0.61307]
[1738250751581,3.2078,3262.5,3262.3,0.61308]
[1738250751776,3.2078,3262.5,3262.2,0.00459298]
[1738250752078,3.78114253,3262.3,3262.2,0.00459298]
[1738250752778,3.16806253,3262.3,3262.2,0.00459298]
[1738250754078,3.16806253,3262.3,3262.2,0.61769298]
[1738250754289,3.16806253,3262.3,3262.2,0.00459298]
[1738250754483,0.24734268,3262.3,3262.2,0.00459298]
[1738250754679,3.82085,3262.5,3262.2,0.00459298]
[1738250754881,3.82085,3262.5,3262.2,0.61769298]
[1738250755086,3.2078,3262.5,3262.2,0.61769298]
[1738250755383,3.82085,3262.5,3262.2,0.61769298]
[1738250755690,4.06492037,3262.5,3262.2,0.00459298]
[1738250756075,3.45187037,3262.5,3262.2,0.00459298]
[1738250756375,3.16806253,3262.3,3261.7,0.9586]
[1738250756681,3.78115253,3262.3,3261.9,0.61314]
[1738250756885,3.16806253,3262.3,3262.0,0.61313]
[1738250757185,3.16806253,3262.3,3262.1,0.61311]
[1738250757386,1.094,3262.2,3262.1,0.61311]
[1738250757983,1.094,3262.2,3261.8,0.00459298]
[1738250758382,1.094,3262.2,3262.0,0.61313]
[1738250758886,1.094,3262.2,3261.9,0.61315]
[1738250759187,3.2078,3262.1,3261.8,0.00459298]
[1738250759487,3.78124253,3261.9,3261.2,4.1788]
[1738250759676,3.78124253,3261.9,3261.6,0.61321]
[1738250759873,3.78124253,3261.9,3261.5,0.61322]